bitfinex-derivatives/quotes_ETHF0:USTF0_20241020
["timestamp","ask_amount","ask_price","bid_price","bid_amount"]
[1729396035044,0.75256,2642.0,2641.9,10.28247446]
[1729396035245,0.75256,2642.0,2641.9,10.28235618]
[1729396035447,0.75256,2642.0,2641.9,4.19856351]
[1729396036253,0.75256,2642.0,2641.9,5.89619257]
[1729396036954,0.75256,2642.0,2641.9,3.2078]
[1729396038151,0.75256,2642.0,2641.9,4.19856351]
[1729396038351,0.75256,2642.0,2641.9,3.2078]
[1729396038654,0.34068,2641.9,2641.8,0.99076351]
[1729396038853,1.15915136,2642.5,2641.8,3.18440837]
[1729396038854,0.30764136,2642.5,2641.8,3.18440837]
[1729396039047,0.34064,2642.2,2642.0,0.99141306]
[1729396039558,0.34064,2642.2,2642.0,1.33207306]
[1729396041952,0.8178,2642.3,2642.0,0.99141306]
[1729396042154,0.8178,2642.3,2642.1,0.34065]
[1729396042359,0.34064,2642.2,2642.1,1.33206306]
[1729396043060,0.8178,2642.3,2642.1,1.33206306]
[1729396043260,0.8178,2642.3,2642.2,0.34064]
[1729396043452,0.8178,2642.3,2642.2,2.43042813]
[1729396043648,0.8178,2642.3,2642.2,4.4160578]
[1729396045161,0.75412,2642.4,2642.3,0.34062]
[1729396045363,0.4135,2642.4,2642.3,3.52628163]
[1729396045551,0.4135,2642.4,2642.3,2.03888825]
[1729396045751,0.75411,2642.4,2642.3,2.03888825]
[1729396045953,0.806,2642.6,2642.3,1.69826825]
[1729396046159,0.806,2642.6,2642.5,1.4870779]
[1729396046160,1.1466,2642.6,2642.5,1.4870779]
[1729396046349,1.1466,2642.6,2642.5,3.18534615]
[1729396048962,1.1466,2642.6,2642.5,3.58284615]
[1729396049170,1.1466,2642.6,2642.5,1.69826825]
[1729396049467,0.3406,2642.5,2642.4,0.99115972]
[1729396050557,4.1246,2642.5,2642.4,0.99115972]
[1729396051061,0.34065,2642.1,2641.9,0.99115972]
[1729396051260,0.34064,2642.2,2642.0,0.34066]
[1729396051460,0.3874,2642.1,2642.0,0.34066]
[1729396051660,0.3874,2642.1,2641.9,0.34067]
[1729396051661,1.15766,2642.1,2641.9,0.34067]
[1729396052457,0.817,2642.1,2641.9,0.34067]
[1729396052769,1.15765,2642.1,2641.9,0.34067]
[1729396053365,0.817,2642.1,2641.8,2.17665972]
[1729396053666,1.15766,2642.1,2641.9,0.34067]
[1729396055973,0.817,2642.1,2642.0,0.34066]
[1729396056569,0.817,2642.1,2641.9,1.33181972]
[1729396057266,0.817,2642.1,2641.9,0.34066]
[1729396057467,0.817,2642.1,2641.8,2.17665972]
[1729396057683,0.817,2642.1,2642.0,0.34066]
[1729396058181,0.817,2642.1,2642.0,7.08137277]
[1729396058367,1.15766,2642.1,2642.0,7.08137277]
[1729396058679,0.817,2642.1,2642.0,7.08137277]
[1729396059578,1.15765,2642.1,2642.0,7.08137277]
[1729396060377,0.817,2642.1,2642.0,7.08137277]
[1729396061981,1.15765,2642.1,2642.0,7.08137277]
[1729396062982,1.15765,2642.1,2642.0,1.69858103]
[1729396065381,0.34067,2642.0,2641.8,4.93864]
[1729396066080,1.15766,2642.1,2641.9,0.34067]
[1729396073286,1.15766,2642.1,2642.0,3.18573022]
[1729396076484,1.15766,2642.1,2642.0,3.18572865]
[1729396080684,1.15766,2642.1,2642.0,1.487475]
[1729396080885,1.15766,2642.1,2642.0,3.18569612]
[1729396082786,1.15766,2642.1,2642.0,0.99162741]
[1729396083893,0.34066,2642.0,2641.9,0.99162741]
[1729396084096,0.74476,2642.0,2641.9,2.69007369]
[1729396084686,0.74476,2642.0,2641.9,2.68999098]
[1729396087894,0.74476,2642.0,2641.9,0.99162741]
[1729396088291,0.4041,2642.0,2641.7,3.5485]
[1729396088495,0.34069,2641.9,2641.7,3.5485]
[1729396088694,0.34069,2641.9,2641.7,0.3407]
[1729396088890,0.4041,2642.0,2641.7,0.3407]
[1729396089090,0.34069,2641.8,2641.7,3.2078]
[1729396094200,0.34069,2641.8,2641.6,1.72593632]
[1729396094500,0.34069,2641.8,2641.7,3.2078]
[1729396095091,0.34069,2641.8,2641.6,1.72593632]
[1729396095291,0.34069,2641.8,2641.7,3.2078]
[1729396095504,0.34069,2641.8,2641.7,6.88916546]
[1729396096304,0.34068,2641.9,2641.7,10.62664058]
[1729396096500,0.34068,2641.9,2641.8,1.69851281]
[1729396103604,0.34068,2641.9,2641.8,3.18597835]
[1729396104399,0.34068,2641.9,2641.8,3.18585941]
[1729396105401,0.34068,2641.9,2641.8,3.52654941]
[1729396105806,0.34067,2642.0,2641.8,3.52654941]
[1729396106008,0.34067,2642.0,2641.9,2.86967387]
[1729396106307,0.34067,2642.0,2641.9,2.93649387]
[1729396106905,0.34067,2642.0,2641.9,3.92789783]
[1729396107401,0.34067,2642.0,2641.9,2.93649387]
[1729396107603,0.34067,2642.0,2641.9,3.92792105]
[1729396107800,0.34067,2642.0,2641.9,3.92787853]
[1729396108003,0.34067,2642.0,2641.9,3.92787168]
[1729396108310,0.34067,2642.0,2641.9,2.93649387]
[1729396108804,0.34067,2642.0,2641.9,3.92790821]
[1729396109198,0.34067,2642.0,2641.9,3.92751965]
[1729396110400,0.34067,2642.0,2641.9,2.93610531]
[1729396110604,0.34067,2642.0,2641.9,1.2381]
[1729396118508,0.34067,2642.0,2641.9,4.42369]
[1729396119110,0.34067,2642.0,2641.9,2.72556554]
[1729396119314,0.34067,2642.0,2641.9,4.42371479]
[1729396124120,0.34067,2642.0,2641.9,4.42422752]
[1729396125113,0.76547,2642.0,2641.9,4.42422752]
[1729396125323,0.76547,2642.0,2641.9,2.93676198]
[1729396125525,0.76547,2642.0,2641.9,1.2381]
[1729396125925,0.34069,2641.8,2641.7,4.19979447]
[1729396126222,0.34069,2641.8,2641.7,6.28786161]
[1729396127423,0.34069,2641.8,2641.7,4.58889447]
[1729396129824,0.34069,2641.8,2641.7,1.38109447]
[1729396130219,0.34069,2641.8,2641.7,4.58889447]
[1729396132122,0.34069,2641.8,2641.7,1.38109447]
[1729396132322,0.34069,2641.8,2641.7,4.58889447]
[1729396132519,0.34069,2641.8,2641.7,4.19979447]
[1729396132724,0.34069,2641.8,2641.7,10.7840932]
[1729396133524,0.34069,2641.8,2641.7,8.30552738]
[1729396136234,0.34069,2641.8,2641.7,5.09772738]
[1729396138929,0.34069,2641.8,2641.7,5.09334579]
[1729396140641,0.34069,2641.8,2641.7,2.68980553]
[1729396141750,0.34069,2641.8,2641.7,1.69778193]
[1729396142449,0.4248,2642.0,2641.7,1.70152031]
[1729396142653,0.34068,2641.9,2641.8,0.9920425]
[1729396143143,0.4248,2642.0,2641.6,4.6958354]
[1729396143144,0.4248,2642.0,2641.7,0.9920425]
[1729396143345,0.4248,2642.0,2641.6,4.6958354]
[1729396143346,0.34068,2641.9,2641.8,0.9920425]
[1729396144741,0.34069,2641.8,2641.7,0.9920425]
[1729396144941,0.34069,2641.8,2641.7,2.69349561]
[1729396145548,0.34069,2641.8,2641.7,2.69346404]
[1729396147356,0.34069,2641.8,2641.7,0.99201093]
[1729396147749,0.34069,2641.8,2641.7,7.09948176]
[1729396150458,0.34069,2641.8,2641.7,7.09926462]
[1729396151958,0.34069,2641.8,2641.7,3.68919205]
[1729396152150,0.34069,2641.8,2641.7,3.68907921]
[1729396152351,0.34069,2641.8,2641.7,7.09911248]
[1729396152552,0.34069,2641.8,2641.7,3.68907921]
[1729396155651,0.34069,2641.8,2641.7,0.99186723]
[1729396157267,0.3407,2641.7,2641.6,0.99186723]
[1729396157454,0.3407,2641.7,2641.6,2.69669407]
[1729396158056,0.3407,2641.7,2641.6,0.99186723]
[1729396162753,0.3407,2641.7,2641.6,7.09773153]
[1729396166769,0.3407,2641.7,2641.6,5.11368433]
[1729396166965,0.4169,2641.8,2641.6,7.09706586]
[1729396167168,0.4169,2641.8,2641.7,3.68795092]
[1729396167374,0.75759,2641.8,2641.7,1.70457692]
[1729396170767,0.75759,2641.8,2641.7,3.19219439]
[1729396171971,0.75759,2641.8,2641.7,3.19232915]
[1729396172374,0.75759,2641.8,2641.7,3.1923736]
[1729396172876,1.06613856,2641.8,2641.7,1.70475613]
[1729396175574,0.75759,2641.8,2641.7,1.70475613]
[1729396176971,0.4169,2641.8,2641.7,1.70484776]
[1729396177277,0.75759,2641.8,2641.7,1.70484776]
[1729396177877,0.3407,2641.7,2641.6,0.99187127]
[1729396181885,0.3407,2641.7,2641.6,2.69683823]
[1729396182280,0.3407,2641.7,2641.6,0.99187127]
[1729396182483,0.3407,2641.7,2641.6,2.6968501]
[1729396182676,0.3407,2641.7,2641.6,0.99187127]
[1729396184078,0.3407,2641.7,2641.6,2.69692548]
[1729396185977,0.3407,2641.7,2641.6,7.09860213]
[1729396186787,0.3407,2641.7,2641.6,7.09864563]
[1729396191579,0.3407,2641.7,2641.6,7.09954054]
[1729396191779,0.4169,2641.8,2641.6,5.11599205]
[1729396192085,0.75759,2641.8,2641.7,3.68959601]
[1729396196786,0.75759,2641.8,2641.7,3.68979599]
[1729396197999,0.75759,2641.8,2641.7,7.10084507]
[1729396198206,0.75759,2641.8,2641.7,7.10084713]
[1729396200900,0.4169,2641.8,2641.7,0.99215931]
[1729396201100,0.75759,2641.8,2641.7,0.99215931]
[1729396201503,0.75759,2641.8,2641.5,5.08753897]
[1729396201504,0.3407,2641.7,2641.5,5.08753897]
[1729396201807,0.3407,2641.7,2641.6,1.70557173]
[1729396202611,0.3407,2641.7,2641.6,2.697816]
[1729396203603,0.3407,2641.7,2641.6,2.69788977]
[1729396203802,0.3407,2641.7,2641.6,1.70557173]
[1729396204007,0.3407,2641.7,2641.6,2.04628173]
[1729396204207,0.4248,2642.0,2641.6,3.5345207]
[1729396204410,0.3407,2641.8,2641.7,1.8352689]
[1729396204815,0.34069,2641.9,2641.7,3.88139663]
[1729396205108,0.4248,2642.0,2641.7,2.1759689]
[1729396205411,0.34068,2641.9,2641.8,0.4032]
[1729396208002,0.34068,2641.9,2641.8,2.108303]
[1729396209819,0.34068,2641.9,2641.8,2.10828573]
[1729396214517,0.34068,2641.9,2641.8,4.0925474]
[1729396214715,0.34068,2641.9,2641.8,7.50129414]
[1729396216119,0.34068,2641.9,2641.8,1.39475024]
[1729396217020,0.34068,2641.9,2641.8,0.4032]
[1729396221127,0.34068,2641.9,2641.8,0.74389]
[1729396223228,0.34068,2641.9,2641.8,4.43204416]
[1729396224629,0.34068,2641.9,2641.8,4.43192554]
[1729396225023,0.3897,2642.1,2641.8,4.43192554]
[1729396225024,0.34067,2642.0,2641.8,4.09123554]
[1729396225224,0.34067,2642.0,2641.9,3.19051798]
[1729396228836,0.73036,2642.1,2641.9,3.53118798]
[1729396229036,0.73036,2642.1,2642.0,1.70377387]
[1729396229230,0.3897,2642.1,2642.0,3.19006506]
[1729396229431,0.73035,2642.1,2642.0,3.19006506]
[1729396230233,0.34067,2642.0,2641.8,1.73484166]
[1729396231037,0.34067,2642.0,2641.8,4.94264166]
[1729396231237,0.34067,2642.0,2641.8,3.95168]
[1729396231739,0.34067,2642.0,2641.8,4.94264166]
[1729396232435,0.3897,2642.1,2641.8,4.60196166]
[1729396232630,0.34062,2642.4,2642.1,0.34064]
[1729396232830,0.34062,2642.3,2642.2,0.4167]
[1729396237242,1.2418,2642.5,2641.9,4.19876166]
[1729396237439,0.34066,2642.1,2641.9,0.34067]
[1729396238157,0.34066,2642.1,2641.9,1.82724353]
[1729396238344,0.34066,2642.1,2642.0,2.69187065]
[1729396238534,0.34066,2642.1,2642.0,1.70182538]
[1729396238842,0.34066,2642.1,2642.0,0.99005638]
[1729396239038,0.34066,2642.1,2642.0,2.69191701]
[1729396241037,0.34066,2642.1,2642.0,1.70186063]
[1729396241236,0.34066,2642.1,2642.0,3.52909416]
[1729396241649,0.34066,2642.1,2642.0,3.18843416]
[1729396243944,1.56275,2642.2,2642.0,3.52909416]
[1729396244137,1.56275,2642.2,2642.1,0.99002721]
[1729396244337,1.56275,2642.2,2642.1,1.38202721]
[1729396245453,1.56275,2642.2,2642.1,3.08392157]
[1729396246543,1.56275,2642.2,2642.1,2.09389436]
[1729396246946,0.4187,2642.2,2642.1,3.92111789]
[1729396247148,0.8142,2642.5,2642.1,5.30169436]
[1729396247446,0.8142,2642.5,2642.3,1.33047469]
[1729396247447,1.15481,2642.5,2642.3,1.33047469]
[1729396248248,0.34061,2642.4,2642.3,0.98985469]
[1729396248548,0.34061,2642.4,2642.3,2.69141381]
[1729396250144,0.34061,2642.4,2642.3,0.98985469]
[1729396253351,0.34061,2642.4,2642.2,0.34064]
[1729396255544,0.34061,2642.4,2642.1,0.392]
[1729396255741,0.34061,2642.4,2642.1,0.73264]
[1729396257759,0.8142,2642.5,2642.1,0.73264]
[1729396258357,0.34061,2642.4,2642.1,0.73264]
[1729396259156,0.34063,2642.3,2642.1,0.73264]
[1729396259356,0.8142,2642.5,2642.1,0.392]
[1729396259654,0.34062,2642.4,2642.2,0.34064]
[1729396260453,0.34062,2642.4,2642.3,0.98985469]
[1729396261361,0.34062,2642.3,2642.2,0.98985469]
[1729396261658,0.34062,2642.4,2642.2,3.03212518]
[1729396261858,0.8142,2642.5,2642.2,0.98985469]
[1729396261859,0.34062,2642.3,2642.2,0.98985469]
[1729396262157,0.34062,2642.3,2642.2,2.6914996]
[1729396264465,0.34062,2642.3,2642.2,2.6918535]
[1729396265358,0.34062,2642.3,2642.2,1.70164491]
[1729396265862,0.34062,2642.3,2642.2,2.69190141]
[1729396266162,0.34062,2642.4,2642.2,3.03254141]
[1729396266350,0.34062,2642.4,2642.2,1.3308965]
[1729396266550,0.34062,2642.4,2642.3,0.9902565]
[1729396268660,0.34062,2642.4,2642.1,1.51644]
[1729396269357,0.34062,2642.4,2642.2,0.34064]
[1729396269952,0.8142,2642.5,2642.1,1.1758]
[1729396270152,0.34061,2642.4,2642.1,1.51644]
[1729396271356,0.8142,2642.5,2642.1,1.1758]
[1729396271552,0.34061,2642.4,2642.1,1.1758]
[1729396271753,0.34061,2642.4,2642.2,0.34064]
[1729396274461,0.34063,2642.3,2642.1,1.51645]
[1729396274856,0.8142,2642.5,2642.1,2.1660565]
[1729396275060,0.34062,2642.4,2642.2,0.34064]
[1729396275558,0.34062,2642.4,2642.3,3.18796436]
[1729396276265,0.34062,2642.4,2642.3,3.18798758]
[1729396280978,0.34062,2642.4,2642.3,1.48478203]
[1729396281269,0.34062,2642.4,2642.3,3.18808475]
[1729396289077,0.34061,2642.4,2642.3,3.18952023]
[1729396290468,0.34061,2642.4,2642.3,1.70330272]
[1729396290677,0.34061,2642.4,2642.2,1.33157944]
[1729396291373,0.34061,2642.4,2642.2,0.34063]
[1729396291672,0.34061,2642.4,2642.2,1.33157944]
[1729396297979,1.15481,2642.5,2642.2,0.99094944]
[1729396298195,1.15481,2642.5,2642.2,1.33156944]
[1729396298384,1.15481,2642.5,2642.3,0.34062]
[1729396298582,1.15481,2642.5,2642.4,3.19004014]
[1729396298881,1.15481,2642.5,2642.4,3.60564014]
[1729396300574,1.15481,2642.5,2642.4,1.90202416]
[1729396300772,1.15481,2642.5,2642.4,3.60550679]
[1729396302983,1.15481,2642.5,2642.4,2.11908263]
[1729396303979,3.2078,2642.9,2642.4,3.60550679]
[1729396304175,0.73608,2642.7,2642.6,0.99086012]
[1729396304379,0.73608,2642.7,2642.6,2.69434275]
[1729396304683,0.73608,2642.7,2642.6,2.69414024]
[1729396304880,0.73608,2642.7,2642.6,2.69413177]
[1729396305380,0.73608,2642.7,2642.6,2.69403111]
[1729396305576,0.73608,2642.7,2642.6,2.69338163]
[1729396305776,0.73608,2642.7,2642.5,0.3406]
[1729396306169,0.73608,2642.7,2642.4,1.5805]
[1729396307478,0.73608,2642.7,2642.4,1.2399]
[1729396307682,0.73608,2642.7,2642.4,1.5805]
[1729396308677,0.34059,2642.6,2642.4,1.5805]
[1729396309279,0.3955,2642.7,2642.4,1.2399]
[1729396309480,0.73608,2642.7,2642.5,0.3406]
[1729396311874,0.73608,2642.7,2642.4,1.5805]
[1729396312075,0.73608,2642.7,2642.4,1.2399]
[1729396312278,0.3955,2642.7,2642.6,0.34059]
[1729396312784,0.3955,2642.7,2642.6,3.18816554]
[1729396312977,0.73607,2642.7,2642.6,3.18816554]
[1729396314080,0.3955,2642.7,2642.6,3.52875554]
[1729396314276,0.73607,2642.7,2642.6,3.18816554]
[1729396314881,0.73607,2642.7,2642.6,3.60206554]
[1729396315186,0.73607,2642.7,2642.6,3.60168969]
[1729396316187,0.3955,2642.7,2642.6,3.94227969]
[1729396316387,0.73607,2642.7,2642.6,3.94227969]
[1729396317087,0.3955,2642.7,2642.6,3.94227969]
[1729396317688,0.73607,2642.7,2642.6,3.94227969]
[1729396320085,0.3955,2642.7,2642.6,3.94227969]
[1729396320791,0.3955,2642.7,2642.6,0.75449]
[1729396321191,0.8201,2642.8,2642.7,0.34057]
[1729396321589,1.2278,2642.8,2642.6,0.4139]
[1729396321791,1.56836,2642.8,2642.6,0.75448]
[1729396322297,1.2278,2642.8,2642.7,0.34057]
[1729396322493,0.4077,2643.0,2642.9,0.34055]
[1729396322689,0.3938,2643.1,2643.0,0.34053]
[1729396323379,0.7482,2643.3,2643.2,0.34051]
[1729396323380,0.4077,2643.3,2643.2,0.34051]
[1729396323792,0.7482,2643.3,2643.1,0.34052]
[1729396324190,0.4077,2643.3,2643.1,0.34051]
[1729396325188,0.4077,2643.3,2643.2,0.34051]
[1729396325600,0.4077,2643.3,2643.1,0.34051]
[1729396326184,0.4077,2643.3,2643.2,0.34051]
[1729396326405,10.0,2643.5,2643.3,0.3405]
[1729396326696,10.0,2643.5,2643.4,0.73238]
[1729396327996,10.0,2643.5,2643.4,0.3919]
[1729396328217,10.34047,2643.5,2643.4,0.3919]
[1729396328705,10.0,2643.5,2643.1,1.7564194]
[1729396329001,10.0,2643.5,2643.0,0.9894194]
[1729396329197,0.34052,2643.2,2643.0,0.34053]
[1729396329396,0.4133,2643.1,2643.0,0.34053]
[1729396329802,0.8262,2643.1,2643.0,0.34053]
[1729396329986,1.16673,2643.1,2642.9,2.0969594]
[1729396330190,0.8262,2643.1,2642.9,1.7564194]
[1729396330388,0.8262,2643.1,2643.0,0.34053]
[1729396334904,0.4133,2643.4,2643.3,0.3405]
[1729396335198,10.34048,2643.5,2643.3,0.3405]
[1729396335608,10.34048,2643.5,2643.4,0.3997]
[1729396335791,10.0,2643.5,2643.4,0.74018]
[1729396336197,10.34047,2643.5,2643.3,0.34049]
[1729396336996,10.34047,2643.5,2643.2,3.2078]
[1729396337202,10.34047,2643.5,2643.4,0.34048]
[1729396337602,10.0,2643.5,2643.2,3.2078]
[1729396337798,10.0,2643.5,2643.3,0.34049]
[1729396337999,0.34048,2643.4,2643.3,0.34049]
[1729396338205,10.0,2643.5,2643.3,0.34049]
[1729396338414,10.34048,2643.5,2643.3,0.34049]
[1729396339210,10.34048,2643.5,2643.4,0.34048]
[1729396339404,10.34048,2643.5,2643.1,0.4053]
[1729396339600,0.34049,2643.4,2643.3,0.34049]
[1729396340106,10.34048,2643.5,2643.3,0.34049]
[1729396340298,10.34048,2643.5,2643.2,0.34051]
[1729396340502,10.34048,2643.5,2643.1,0.4053]
[1729396341001,10.34048,2643.5,2643.3,0.34048]
[1729396341208,10.34047,2643.5,2643.3,0.34048]
[1729396341918,10.34047,2643.5,2643.4,0.34048]
[1729396342407,10.34047,2643.5,2643.2,3.2078]
[1729396342609,10.0,2643.5,2643.4,0.34048]
[1729396344308,10.34047,2643.5,2643.4,0.34048]
[1729396344608,10.0,2643.5,2643.4,0.34048]
[1729396345605,10.34048,2643.5,2643.3,0.34049]
[1729396346107,10.34048,2643.5,2643.4,0.34048]
[1729396346415,10.34048,2643.5,2643.1,3.6131]
[1729396346616,10.0,2643.5,2643.1,3.6131]
[1729396346815,10.0,2643.5,2643.4,0.34048]
[1729396347009,10.34047,2643.5,2643.4,0.34048]
[1729396347412,10.0,2643.5,2643.4,0.34048]
[1729396347619,10.0,2643.5,2643.1,3.6131]
[1729396347808,10.0,2643.5,2643.4,0.34048]
[1729396349217,10.34048,2643.5,2643.3,0.34049]
[1729396349417,10.0,2643.5,2643.4,0.34048]
[1729396350317,10.34047,2643.5,2643.1,3.6131]
[1729396350618,10.34047,2643.5,2643.3,0.34049]
[1729396351217,10.0,2643.5,2643.1,3.6131]
[1729396351415,10.34048,2643.5,2643.1,3.6131]
[1729396351817,10.34048,2643.5,2643.3,0.34048]
[1729396352320,10.34048,2643.5,2643.1,3.6131]
[1729396352619,10.34048,2643.5,2643.3,0.34049]
[1729396352822,10.0,2643.5,2643.3,0.34049]
[1729396353015,0.34048,2643.4,2643.3,0.34049]
[1729396353219,10.0,2643.5,2643.3,0.34049]
[1729396353417,10.34048,2643.5,2643.3,0.34049]
[1729396357417,10.34048,2643.5,2643.4,0.34048]
[1729396357617,10.34048,2643.5,2643.3,0.34049]
[1729396358233,10.34048,2643.5,2643.4,0.34048]
[1729396359023,10.34048,2643.5,2643.1,3.6131]
[1729396359224,10.34048,2643.5,2643.3,0.34049]
[1729396361126,10.34048,2643.5,2643.1,3.6131]
[1729396361424,10.34048,2643.5,2643.3,0.34049]
[1729396362117,10.34048,2643.5,2643.1,3.6131]
[1729396362118,10.34048,2643.5,2643.1,0.4053]
[1729396362519,10.34048,2643.5,2643.3,0.34048]
[1729396363814,10.34048,2643.5,2643.2,3.2078]
[1729396363815,10.0,2643.5,2643.2,3.2078]
[1729396364019,0.3405,2643.3,2643.2,3.2078]
[1729396367136,0.3405,2643.3,2643.2,4.1972194]
[1729396368033,0.3405,2643.3,2643.2,0.9894194]
[1729396368238,0.3405,2643.3,2643.2,5.89795925]
[1729396370334,0.3405,2643.3,2643.2,2.69015925]
[1729396370636,0.3405,2643.3,2643.2,5.89795925]
[1729396371035,0.3405,2643.3,2643.2,4.90853985]
[1729396371226,0.3405,2643.3,2643.2,5.89784613]
[1729396371737,0.3405,2643.3,2643.2,4.90869376]
[1729396372035,0.3405,2643.3,2643.2,5.89797806]
[1729396373246,0.3405,2643.3,2643.2,4.90869376]
[1729396373432,0.3405,2643.3,2643.2,5.89793192]
[1729396373936,0.3405,2643.3,2643.2,4.90869376]
[1729396374136,0.3405,2643.3,2643.2,6.39498394]
[1729396374436,0.3405,2643.3,2643.2,4.90869376]
[1729396376849,0.3405,2643.3,2643.2,4.90813829]
[1729396378239,0.3405,2643.3,2643.2,5.24864829]
[1729396378637,0.3405,2643.3,2643.2,4.90813829]
[1729396378941,0.3405,2643.3,2643.2,1.70033829]
[1729396379134,0.3405,2643.3,2643.2,4.90813829]
[1729396379543,0.3405,2643.3,2643.2,5.8970556]
[1729396379734,0.3405,2643.3,2643.2,2.6892556]
[1729396380841,0.3405,2643.3,2643.2,2.68925821]
[1729396381142,0.3405,2643.3,2643.1,0.73841]
[1729396381443,0.3977,2643.2,2643.1,0.73841]
[1729396382531,0.73821,2643.2,2643.1,0.73841]
[1729396382736,0.3977,2643.2,2643.1,0.73841]
[1729396383646,0.73821,2643.2,2643.1,0.73841]
[1729396384037,0.3977,2643.2,2643.1,0.73841]
[1729396387043,0.73821,2643.2,2643.1,3.6057]
[1729396387240,0.73821,2643.2,2643.1,3.94622]
[1729396387650,0.3977,2643.2,2643.1,3.94622]
[1729396388252,0.3977,2643.2,2643.1,7.13312662]
[1729396388449,0.73821,2643.2,2643.1,7.13312662]
[1729396388649,0.3977,2643.2,2643.1,7.13312662]
[1729396389853,0.3977,2643.2,2643.1,7.13309605]
[1729396392148,10.0,2643.5,2643.1,6.79257605]
[1729396392357,0.72859,2643.4,2643.3,0.98902613]
[1729396395143,0.72859,2643.4,2643.2,0.34051]
[1729396395549,0.3881,2643.4,2643.2,0.34051]
[1729396395850,0.3405,2643.3,2643.1,4.4215]
[1729396396051,0.72859,2643.4,2643.2,0.3405]
[1729396396248,0.3405,2643.3,2643.1,4.4215]
[1729396397254,0.72859,2643.4,2643.2,0.3405]
[1729396398346,0.72859,2643.4,2643.1,4.4215]
[1729396398546,0.72859,2643.4,2643.2,0.3405]
[1729396398759,0.72859,2643.4,2643.3,0.3405]
[1729396399258,0.3881,2643.4,2643.3,0.3405]
[1729396399457,0.72859,2643.4,2643.2,0.3405]
[1729396401153,0.72859,2643.4,2643.3,0.3405]
[1729396401952,0.72859,2643.4,2643.1,4.4215]
[1729396402159,0.72859,2643.4,2643.2,0.3405]
[1729396403274,0.72859,2643.4,2643.3,2.68978681]
[1729396404472,0.72859,2643.4,2643.3,0.98902613]
[1729396410386,0.34051,2643.2,2643.1,3.6057]
[1729396416687,0.8141,2643.3,2643.1,3.6057]
[1729396416984,0.34051,2643.2,2643.1,3.6057]
[1729396418389,0.34051,2643.2,2643.1,5.3073194]
[1729396418794,0.34051,2643.2,2643.1,2.0995194]
[1729396419088,0.34051,2643.2,2643.1,5.30728457]
[1729396422187,0.8141,2643.3,2643.1,5.30728457]
[1729396422390,1.15461,2643.3,2643.2,3.18579879]
[1729396424077,1.15461,2643.3,2643.2,3.18513763]
[1729396428789,1.15461,2643.3,2643.2,3.18504873]
[1729396432298,0.3405,2643.3,2643.2,3.18504873]
[1729396432496,0.72859,2643.4,2643.2,3.52555873]
[1729396432694,0.72859,2643.4,2643.3,2.69005939]
[1729396433293,0.72859,2643.4,2643.2,0.34051]
[1729396433496,0.3881,2643.4,2643.1,3.6057]
[1729396433697,0.3405,2643.3,2643.1,4.76411]
[1729396433902,0.3881,2643.4,2643.1,4.76411]
[1729396434086,0.72859,2643.4,2643.1,4.76411]
[1729396434285,0.72859,2643.4,2643.2,0.3405]
[1729396434491,0.72859,2643.4,2643.1,4.76411]
[1729396434690,0.72859,2643.4,2643.2,0.34051]
[1729396435192,0.3881,2643.4,2643.3,0.3405]
[1729396435398,0.72859,2643.4,2643.2,0.3405]
[1729396440396,0.72859,2643.4,2643.3,3.18526233]
[1729396445206,0.72859,2643.4,2643.3,3.60206233]
[1729396445396,0.72859,2643.4,2643.3,3.94256233]
[1729396445597,0.72859,2643.4,2643.3,3.60206233]
[1729396446606,0.72859,2643.4,2643.3,3.94256233]
[1729396446806,0.72859,2643.4,2643.3,3.60206233]
[1729396447006,0.72859,2643.4,2643.3,3.60341037]
[1729396447697,0.72859,2643.4,2643.3,3.94391037]
[1729396447899,0.72859,2643.4,2643.3,3.60341037]
[1729396448408,0.72859,2643.4,2643.3,0.4168]
[1729396451608,0.72859,2643.4,2643.3,0.7573]
[1729396452198,0.72859,2643.4,2643.3,0.4168]
[1729396454401,0.72859,2643.4,2643.3,0.7573]
[1729396455410,0.72859,2643.4,2643.3,3.94431145]
[1729396456001,0.3881,2643.4,2643.3,3.94431145]
[1729396456408,0.72858,2643.4,2643.3,3.60381145]
[1729396456604,0.72858,2643.4,2643.3,3.94431538]
[1729396456800,0.3881,2643.4,2643.3,3.94431538]
[1729396459017,0.72858,2643.4,2643.3,3.94431538]
[1729396459213,0.3881,2643.4,2643.3,3.94431538]
[1729396459917,0.72858,2643.4,2643.3,3.60381538]
[1729396460906,0.72858,2643.4,2643.3,3.94431538]
[1729396461616,0.72858,2643.4,2643.3,3.94418567]
[1729396462715,0.72858,2643.4,2643.3,3.60368567]
[1729396464811,0.72858,2643.4,2643.3,3.94418567]
[1729396466824,0.3881,2643.4,2643.3,3.94418567]
[1729396469620,0.72858,2643.4,2643.3,3.94418567]
[1729396470614,0.72858,2643.4,2643.3,0.7573]
[1729396471324,0.72858,2643.4,2643.3,0.4168]
[1729396471828,0.72858,2643.4,2643.3,0.7573]
[1729396472126,0.72858,2643.4,2643.3,0.4168]
[1729396478633,0.72858,2643.4,2643.3,3.60401277]
[1729396481233,0.72858,2643.4,2643.3,3.60401012]
[1729396485745,0.72858,2643.4,2643.3,0.4168]
[1729396493752,0.72858,2643.4,2643.3,3.6039451]
[1729396500750,0.72858,2643.4,2643.3,0.4168]
[1729396508657,0.72858,2643.4,2643.3,3.60530724]
[1729396509156,0.72858,2643.4,2643.3,3.60544458]
[1729396513755,0.72858,2643.4,2643.3,1.90101422]
[1729396513950,0.72858,2643.4,2643.3,3.60557453]
[1729396518752,0.72858,2643.4,2643.3,3.60551577]
[1729396521766,0.72858,2643.4,2643.3,2.12130155]
[1729396522966,0.72858,2643.4,2643.3,0.4168]
[1729396526455,0.3881,2643.4,2643.3,0.7573]
[1729396526656,0.72858,2643.4,2643.3,0.7573]
[1729396527763,0.72858,2643.4,2643.3,0.4168]